fUST/lending_fUST_20240703
["ID","MTS","AMOUNT","RATE_DAILY","PERIOD"]
[330974706,1719979769448,-586.61,0.0001402,2]
[330974707,1719979769479,-213.04891409,0.0001402,2]
[330974708,1719979769521,-563.2494525,0.0001402,2]
[330974710,1719979794399,-826.91708142,0.0001402,2]
[330974711,1719979794454,-222.57455199,0.0001402,2]
[330974712,1719979794483,-491.19486687,0.0001402,2]
[330974742,1719979833420,-300.0,0.0001402,2]
[330974743,1719979833432,-134.4293937,0.0001402,2]
[330974745,1719979833480,-396.5706063,0.0001402,2]
[330974746,1719979833489,-283.81983862,0.0001402,2]
[330974747,1719979833501,-216.18016138,0.0001402,2]
[330974748,1719979833511,-3948.11481373,0.0001402,2]
[330974754,1719979838238,-7236.48518627,0.0001402,2]
[330974755,1719979838259,-3120.34414499,0.00014021,2]
[330974756,1719979838270,-158.05520828,0.00014021,2]
[330974757,1719979838280,-331.90474626,0.00014021,2]
[330974758,1719979838291,-900.83,0.00014021,2]
[330974759,1719979838306,-503.82146925,0.00014021,2]
[330974760,1719979838316,-500.0,0.00014021,2]
[330974761,1719979838326,-509.04142347,0.00014021,2]
[330974762,1719979838336,-500.0,0.00014021,2]
[330974763,1719979838347,-500.0,0.00014021,2]
[330974764,1719979838358,-1473.93,0.00014021,2]
[330974765,1719979838368,-500.0,0.00014021,2]
[330974766,1719979838378,-500.0,0.00014021,2]
[330974767,1719979838390,-500.0,0.00014021,2]
[330974769,1719979838400,-500.0,0.00014021,2]
[330974770,1719979838410,-500.0,0.00014021,2]
[330974771,1719979838420,-500.0,0.00014021,2]
[330974772,1719979838430,-500.0,0.00014021,2]
[330974773,1719979838440,-812.24,0.00014021,2]
[330974774,1719979838450,-1083.72,0.00014021,2]
[330974775,1719979838461,-500.0,0.00014021,2]
[330974776,1719979838472,-500.0,0.00014021,2]
[330974777,1719979838482,-500.0,0.00014021,2]
[330974778,1719979838492,-606.58,0.00014021,2]
[330974779,1719979838502,-500.0,0.00014021,2]
[330974780,1719979838512,-500.0,0.00014021,2]
[330974781,1719979838522,-500.0,0.00014021,2]
[330974782,1719979838532,-500.0,0.00014021,2]
[330974783,1719979838543,-500.0,0.00014021,2]
[330974784,1719979838552,-500.0,0.00014021,2]
[330974785,1719979838562,-500.0,0.00014021,2]
[330974786,1719979838572,-506.07096002,0.00014021,2]
[330974787,1719979838582,-500.0,0.00014021,2]
[330974788,1719979838592,-500.0,0.00014021,2]
[330974789,1719979838602,-500.0,0.00014021,2]
[330974790,1719979838612,-689.01,0.00014021,2]
[330974791,1719979838623,-1081.81,0.00014021,2]
[330974792,1719979838633,-500.0,0.00014021,2]
[330974793,1719979838643,-500.0,0.00014021,2]
[330974794,1719979838654,-3278.14,0.00014021,2]
[330974795,1719979838664,-500.0,0.00014021,2]
[330974796,1719979838674,-2187.32,0.00014021,2]
[330974797,1719979838684,-500.0,0.00014021,2]
[330974798,1719979838694,-500.0,0.00014021,2]
[330974799,1719979838704,-500.0,0.00014021,2]
[330974800,1719979838714,-500.0,0.00014021,2]
[330974801,1719979838724,-500.71,0.00014021,2]
[330974802,1719979838734,-500.0,0.00014021,2]
[330974803,1719979838744,-500.0,0.00014021,2]
[330974804,1719979838755,-226.4332071,0.00014021,2]
[330974805,1719979838765,-500.0,0.00014021,2]
[330974806,1719979838776,-500.0,0.00014021,2]
[330974807,1719979838786,-865.95,0.00014021,2]
[330974808,1719979838795,-500.0,0.00014021,2]
[330974809,1719979838805,-500.0,0.00014021,2]
[330974810,1719979838815,-1271.82,0.00014021,2]
[330974811,1719979838826,-500.0,0.00014021,2]
[330974812,1719979838836,-928.09,0.00014021,2]
[330974813,1719979838845,-500.0,0.00014021,2]
[330974814,1719979838856,-626.98,0.00014021,2]
[330974815,1719979838865,-4380.06,0.00014021,2]
[330974816,1719979838875,-500.0,0.00014021,2]
[330974817,1719979838884,-500.0,0.00014021,2]
[330974818,1719979838894,-500.0,0.00014021,2]
[330974819,1719979838903,-500.0,0.00014021,2]
[330974820,1719979838913,-500.0,0.00014021,2]
[330974821,1719979838923,-500.0,0.00014021,2]
[330974822,1719979838933,-500.0,0.00014021,2]
[330974823,1719979838942,-500.0,0.00014021,2]
[330974824,1719979838952,-2127.2,0.00014021,2]
[330974825,1719979838962,-564.13,0.00014021,2]
[330974826,1719979838971,-500.0,0.00014021,2]
[330974827,1719979838981,-500.0,0.00014021,2]
[330974828,1719979838991,-500.0,0.00014021,2]
[330974829,1719979839000,-500.0,0.00014021,2]
[330974830,1719979839010,-500.0,0.00014021,2]
[330974831,1719979839021,-774.84,0.00014021,2]
[330974832,1719979839031,-2103.87,0.00014021,2]
[330974833,1719979839042,-500.0,0.00014021,2]
[330974834,1719979839053,-1123.68,0.00014021,2]
[330974835,1719979839063,-500.0,0.00014021,2]
[330974836,1719979839077,-500.0,0.00014021,2]
[330974837,1719979839087,-500.0,0.00014021,2]
[330974838,1719979839098,-500.0,0.00014021,2]
[330974839,1719979839109,-1002.89,0.00014021,2]
[330974840,1719979839121,-500.0,0.00014021,2]
[330974841,1719979839131,-500.0,0.00014021,2]
[330974842,1719979839142,-826.6,0.00014021,2]
[330974843,1719979839153,-500.0,0.00014021,2]
[330974844,1719979839163,-503.809035,0.00014021,2]
[330974845,1719979839174,-500.0,0.00014022,2]
[330974846,1719979839186,-8344.0,0.00014022,2]
[330974847,1719979839196,-500.0,0.00014022,2]
[330974848,1719979839208,-1030.83,0.00014022,2]
[330974849,1719979839218,-500.0,0.00014022,2]
[330974850,1719979839229,-1393.46,0.00014022,2]
[330974851,1719979839240,-1393.46,0.00014022,2]
[330974852,1719979839251,-562.39,0.00014022,2]
[330974853,1719979839262,-500.0,0.00014022,2]
[330974854,1719979839272,-500.0,0.00014022,2]
[330974855,1719979839283,-500.0,0.00014022,2]
[330974856,1719979839297,-601.22,0.00014022,2]
[330974857,1719979839307,-500.0,0.00014022,2]
[330974858,1719979839318,-500.0,0.00014022,2]
[330974859,1719979839329,-500.0,0.00014022,2]
[330974860,1719979839340,-500.0,0.00014022,2]
[330974861,1719979839350,-500.0,0.00014022,2]
[330974862,1719979839361,-500.0,0.00014022,2]
[330974863,1719979839371,-500.0,0.00014022,2]
[330974864,1719979839383,-500.0,0.00014022,2]
[330974865,1719979839394,-500.0,0.00014022,2]
[330974866,1719979839405,-500.0,0.00014022,2]
[330974867,1719979839416,-500.0,0.00014022,2]
[330974868,1719979839428,-565.07689049,0.00014022,2]
[330974869,1719979839438,-500.0,0.00014022,2]
[330974870,1719979839448,-500.0,0.00014022,2]
[330974871,1719979839459,-500.0,0.00014022,2]
[330974872,1719979839470,-7121.83,0.00014022,2]
[330974873,1719979839480,-500.0,0.00014022,2]
[330974874,1719979839490,-500.0,0.00014022,2]
[330974875,1719979839500,-546.65,0.00014022,2]
[330974876,1719979839511,-619.11207038,0.00014022,2]
[330974877,1719979839521,-500.0,0.00014022,2]
[330974878,1719979839531,-1300.27,0.00014022,2]
[330974879,1719979839542,-500.0,0.00014022,2]
[330974881,1719979839553,-500.0,0.00014022,2]
[330974883,1719979839562,-257.81303427,0.00014022,2]
[330974884,1719979839572,-500.0,0.00014022,2]
[330974885,1719979839582,-500.0,0.00014022,2]
[330974886,1719979839592,-500.0,0.00014022,2]
[330974887,1719979839602,-500.0,0.00014022,2]
[330974888,1719979839611,-500.0,0.00014022,2]
[330974889,1719979839621,-500.0,0.00014022,2]
[330974890,1719979839630,-500.0,0.00014022,2]
[330974891,1719979839640,-500.0,0.00014022,2]
[330974892,1719979839650,-755.57,0.00014022,2]
[330974893,1719979839660,-500.0,0.00014022,2]
[330974894,1719979839670,-500.0,0.00014022,2]
[330974895,1719979839680,-491.17566559,0.00014022,2]
[330974896,1719979839691,-500.0,0.00014022,2]
[330974897,1719979839701,-577.48,0.00014022,2]
[330974898,1719979839710,-500.0,0.00014022,2]
[330974899,1719979839720,-582.95,0.00014022,2]
[330974900,1719979839730,-500.0,0.00014022,2]
[330974901,1719979839740,-500.0,0.00014022,2]
[330974902,1719979839750,-500.0,0.00014022,2]
[330974903,1719979839762,-500.0,0.00014022,2]
[330974904,1719979839772,-893.19,0.00014022,2]
[330974905,1719979839782,-500.0,0.00014022,2]
[330974906,1719979839792,-401.561576,0.00014022,2]
[330974907,1719979839803,-500.0,0.00014022,2]
[330974908,1719979839813,-401.561576,0.00014022,2]
[330974909,1719979839823,-500.0,0.00014022,2]
[330974911,1719979839832,-645.57132153,0.00014022,2]
[330974912,1719979839842,-500.0,0.00014022,2]
[330974914,1719979839852,-446.984693,0.00014022,2]
[330974915,1719979839862,-446.984693,0.00014022,2]
[330974916,1719979839873,-446.984693,0.00014022,2]
[330974917,1719979839882,-446.984693,0.00014022,2]
[330974918,1719979839891,-151.0,0.00014022,2]
[330974919,1719979839901,-151.0,0.00014022,2]
[330974920,1719979839911,-201.005557,0.00014022,2]
[330974921,1719979839920,-151.0,0.00014022,2]
[330974922,1719979839931,-500.0,0.00014022,2]
[330974923,1719979839941,-271.911676,0.00014022,2]
[330974924,1719979839950,-151.0,0.00014022,2]
[330974925,1719979839960,-151.0,0.00014022,2]
[330974926,1719979839970,-151.0,0.00014022,2]
[330974927,1719979839979,-151.0,0.00014022,2]
[330974928,1719979839988,-151.0,0.00014022,2]
[330974929,1719979839998,-151.0,0.00014022,2]
[330974930,1719979840008,-151.0,0.00014022,2]
[330974931,1719979840017,-500.0,0.00014023,2]
[330974932,1719979840027,-500.0,0.00014023,2]
[330974933,1719979840037,-500.0,0.00014023,2]
[330974934,1719979840048,-918.84,0.00014023,2]
[330974935,1719979840057,-500.0,0.00014023,2]
[330974936,1719979840067,-500.0,0.00014023,2]
[330974937,1719979840077,-500.0,0.00014023,2]
[330974938,1719979840087,-731.84,0.00014023,2]
[330974939,1719979840098,-500.0,0.00014023,2]
[330974940,1719979840108,-500.0,0.00014023,2]
[330974941,1719979840118,-867.52,0.00014023,2]
[330974942,1719979840128,-500.0,0.00014023,2]
[330974943,1719979840138,-500.0,0.00014023,2]
[330974944,1719979840148,-401.561576,0.00014023,2]
[330974945,1719979840158,-500.0,0.00014023,2]
[330974946,1719979840168,-401.561576,0.00014023,2]
[330974947,1719979840178,-615.23,0.00014023,2]
[330974948,1719979840188,-500.0,0.00014023,2]
[330974949,1719979840198,-446.984693,0.00014023,2]
[330974950,1719979840208,-446.984693,0.00014023,2]
[330974951,1719979840218,-500.0,0.00014023,2]
[330974952,1719979840228,-744.9,0.00014023,2]
[330974953,1719979840238,-500.0,0.00014023,2]
[330974954,1719979840248,-500.0,0.00014023,2]
[330974956,1719979840258,-500.0,0.00014023,2]
[330974957,1719979840268,-151.0,0.00014023,2]
[330974958,1719979840279,-500.0,0.00014023,2]
[330974959,1719979840289,-500.0,0.00014023,2]
[330974960,1719979840301,-151.0,0.00014023,2]
[330974961,1719979840311,-500.0,0.00014023,2]
[330974962,1719979840322,-1393.46,0.00014024,2]
[330974963,1719979840332,-12911.35,0.00014024,2]
[330974964,1719979840343,-676.42,0.00014024,2]
[330974965,1719979840353,-401.561576,0.00014024,2]
[330974966,1719979840363,-401.561576,0.00014024,2]
[330974967,1719979840372,-500.0,0.00014024,2]
[330974968,1719979840383,-151.0,0.00014024,2]
[330974969,1719979840394,-2181.13,0.00014024,2]
[330974970,1719979840403,-1854.54,0.00014024,2]
[330974971,1719979840424,-151.0,0.00014024,2]
[330974972,1719979840434,-6040.3,0.00014024,2]
[330974974,1719979840444,-151.0,0.00014024,2]
[330974975,1719979840454,-500.0,0.00014024,2]
[330974976,1719979840464,-151.0,0.00014024,2]
[330974977,1719979840474,-151.0,0.00014024,2]
[330974978,1719979840484,-1216.49,0.00014025,2]
[330974979,1719979840494,-818.22,0.00014025,2]
[330974981,1719979840503,-1010.12,0.00014025,2]
[330974983,1719979840513,-10640.5,0.00014025,2]
[330974984,1719979840523,-3603.57,0.00014025,2]
[330974985,1719979840533,-401.561576,0.00014025,2]
[330974986,1719979840543,-401.561576,0.00014025,2]
[330974987,1719979840554,-446.984693,0.00014025,2]
[330974988,1719979840564,-446.984693,0.00014025,2]
[330974989,1719979840574,-446.984693,0.00014025,2]
[330974990,1719979840584,-446.984693,0.00014025,2]
[330974991,1719979840594,-151.0,0.00014025,2]
[330974992,1719979840603,-151.0,0.00014025,2]
[330974993,1719979840613,-151.0,0.00014025,2]
[330974994,1719979840623,-151.0,0.00014025,2]
[330974995,1719979840633,-151.0,0.00014025,2]
[330974996,1719979840643,-1393.46,0.00014026,2]
[330974997,1719979840653,-151.0,0.00014026,2]
[330974998,1719979840663,-151.0,0.00014026,2]
[330974999,1719979840672,-151.0,0.00014026,2]
[330975000,1719979840682,-877.0,0.00014072,2]
[330975001,1719979840692,-150.436,0.00014075,2]
[330975002,1719979840702,-150.0,0.00014075,2]
[330975003,1719979840712,-1149.28100869,0.00014086,2]
[330975004,1719979840722,-621.447749,0.00014089,2]
[330975005,1719979840732,-1491.55960217,0.00014294,2]
[330975006,1719979840741,-586.61,0.00014294,2]
[330975007,1719979840751,-1825.79,0.00014294,2]
[330975008,1719979840762,-531.0,0.00014294,2]
[330975009,1719979840772,-11184.6,0.00014294,2]
[330975010,1719979840940,-900.83,0.00014295,2]
[330975011,1719979840950,-500.0,0.00014295,2]
[330975012,1719979840960,-1473.93,0.00014295,2]
[330975013,1719979840969,-500.0,0.00014295,2]
[330975014,1719979840978,-500.02116393,0.00014295,2]
[330975015,1719979840987,-383.98809428,0.00014295,2]
[330975016,1719979840996,-500.0,0.00014295,2]
[330975017,1719979841005,-812.24,0.00014295,2]
[330975018,1719979841015,-1083.72,0.00014295,2]
[330975019,1719979841025,-500.0,0.00014295,2]
[330975020,1719979841034,-500.0,0.00014295,2]
[330975021,1719979841044,-606.58,0.00014295,2]
[330975022,1719979841056,-500.0,0.00014295,2]
[330975023,1719979841066,-401.561576,0.00014295,2]
[330975024,1719979841075,-401.561576,0.00014295,2]
[330975025,1719979841084,-401.561576,0.00014295,2]
[330975026,1719979841098,-500.0,0.00014295,2]
[330975027,1719979841107,-401.561576,0.00014295,2]
[330975028,1719979841116,-401.561576,0.00014295,2]
[330975029,1719979841125,-401.561576,0.00014295,2]
[330975030,1719979841134,-500.0,0.00014295,2]
[330975031,1719979841143,-500.0,0.00014295,2]
[330975032,1719979841152,-500.0,0.00014295,2]
[330975033,1719979841161,-580.34,0.00014295,2]
[330975034,1719979841171,-500.0,0.00014295,2]
[330975035,1719979841180,-500.0,0.00014295,2]
[330975036,1719979841190,-689.01,0.00014295,2]
[330975037,1719979841199,-1081.81,0.00014295,2]
[330975038,1719979841208,-446.984693,0.00014295,2]
[330975039,1719979841218,-446.984693,0.00014295,2]
[330975040,1719979841227,-500.0,0.00014295,2]
[330975041,1719979841236,-446.984693,0.00014295,2]
[330975042,1719979841246,-446.984693,0.00014295,2]
[330975043,1719979841255,-500.0,0.00014295,2]
[330975044,1719979841264,-3278.14,0.00014295,2]
[330975045,1719979841273,-505.43354721,0.00014295,2]
[330975046,1719979841283,-2187.32,0.00014295,2]
[330975047,1719979841293,-507.3412434,0.00014295,2]
[330975048,1719979841307,-500.0,0.00014295,2]
[330975049,1719979841316,-500.71,0.00014295,2]
[330975050,1719979841325,-500.0,0.00014295,2]
[330975051,1719979841334,-554.01546703,0.00014295,2]
[330975052,1719979841346,-865.95,0.00014295,2]
[330975053,1719979841355,-151.0,0.00014295,2]
[330975054,1719979841366,-229.272925,0.00014295,2]
[330975055,1719979841376,-1271.82,0.00014295,2]
[330975056,1719979841389,-928.09,0.00014295,2]
[330975057,1719979841400,-626.98,0.00014295,2]
[330975058,1719979841410,-500.0,0.00014295,2]
[330975059,1719979841420,-4380.06,0.00014295,2]
[330975060,1719979841430,-500.0,0.00014295,2]
[330975061,1719979841439,-553.96761549,0.00014295,2]
[330975062,1719979841449,-500.0,0.00014295,2]
[330975063,1719979841459,-578.91,0.00014295,2]
[330975064,1719979841468,-500.0,0.00014295,2]
[330975065,1719979841478,-158.252698,0.00014295,2]
[330975066,1719979841487,-500.0,0.00014295,2]
[330975067,1719979841496,-500.0,0.00014295,2]
[330975068,1719979841505,-500.0,0.00014295,2]
[330975069,1719979841514,-2127.2,0.00014295,2]
[330975070,1719979841524,-564.13,0.00014295,2]
[330975071,1719979841533,-500.0,0.00014295,2]
[330975072,1719979841543,-500.0,0.00014295,2]
[330975073,1719979841553,-500.0,0.00014295,2]
[330975074,1719979841563,-151.0,0.00014295,2]
[330975075,1719979841572,-151.0,0.00014295,2]
[330975076,1719979841581,-500.0,0.00014295,2]
[330975077,1719979841590,-151.0,0.00014295,2]
[330975078,1719979841599,-774.84,0.00014295,2]
[330975079,1719979841608,-2103.87,0.00014295,2]
[330975080,1719979841617,-151.0,0.00014295,2]
[330975081,1719979841626,-151.0,0.00014295,2]
[330975082,1719979841636,-151.0,0.00014295,2]
[330975083,1719979841645,-263.641159,0.00014295,2]
[330975084,1719979841654,-500.0,0.00014295,2]
[330975085,1719979841663,-1123.68,0.00014295,2]
[330975086,1719979841672,-500.0,0.00014295,2]
[330975087,1719979841681,-500.0,0.00014295,2]
[330975088,1719979841690,-500.0,0.00014295,2]
[330975089,1719979841700,-500.0,0.00014295,2]
[330975090,1719979841712,-1002.89,0.00014295,2]
[330975091,1719979841722,-500.0,0.00014295,2]
[330975092,1719979841732,-509.20792188,0.00014295,2]
[330975093,1719979841741,-826.6,0.00014295,2]
[330975094,1719979841750,-500.0,0.00014295,2]
[330975095,1719979841761,-500.0,0.00014296,2]
[330975096,1719979841772,-8344.0,0.00014296,2]
[330975097,1719979841781,-500.0,0.00014296,2]
[330975098,1719979841790,-1030.83,0.00014296,2]
[330975099,1719979841801,-500.0,0.00014296,2]
[330975100,1719979841811,-1393.46,0.00014296,2]
[330975101,1719979841820,-1393.46,0.00014296,2]
[330975102,1719979841829,-562.39,0.00014296,2]
[330975103,1719979841839,-500.0,0.00014296,2]
[330975104,1719979841849,-500.0,0.00014296,2]
[330975105,1719979841858,-500.0,0.00014296,2]
[330975106,1719979841867,-601.22,0.00014296,2]
[330975107,1719979841877,-221.44456564,0.00014296,2]
[330975108,1719979841887,-500.0,0.00014296,2]
[330975109,1719979841896,-500.0,0.00014296,2]
[330975110,1719979841905,-500.0,0.00014296,2]
[330975111,1719979841915,-412.01528165,0.00014296,2]
[330975112,1719979841924,-500.0,0.00014296,2]
[330975113,1719979841933,-500.0,0.00014296,2]
[330975114,1719979841943,-509.17536574,0.00014296,2]
[330975115,1719979841952,-500.0,0.00014296,2]
[330975116,1719979841962,-500.0,0.00014296,2]
[330975117,1719979841972,-500.0,0.00014296,2]
[330975118,1719979841982,-500.0,0.00014296,2]
[330975119,1719979841991,-500.0,0.00014296,2]
[330975120,1719979842000,-500.0,0.00014296,2]
[330975121,1719979842010,-7121.83,0.00014296,2]
[330975122,1719979842019,-500.0,0.00014296,2]
[330975123,1719979842028,-500.0,0.00014296,2]
[330975124,1719979842038,-546.65,0.00014296,2]
[330975125,1719979842048,-500.0,0.00014296,2]
[330975126,1719979842057,-1300.27,0.00014296,2]
[330975127,1719979842066,-500.0,0.00014296,2]
[330975128,1719979842076,-500.0,0.00014296,2]
[330975129,1719979842085,-500.0,0.00014296,2]
[330975130,1719979842094,-643.20623522,0.00014296,2]
[330975131,1719979842104,-500.0,0.00014296,2]
[330975132,1719979842113,-500.0,0.00014296,2]
[330975133,1719979842122,-500.0,0.00014296,2]
[330975134,1719979842131,-500.0,0.00014296,2]
[330975135,1719979842141,-500.0,0.00014296,2]
[330975136,1719979842150,-500.0,0.00014296,2]
[330975137,1719979842159,-755.57,0.00014296,2]
[330975138,1719979842169,-500.0,0.00014296,2]
[330975139,1719979842178,-500.0,0.00014296,2]
[330975140,1719979842188,-500.0,0.00014296,2]
[330975141,1719979842200,-577.48,0.00014296,2]
[330975142,1719979842210,-500.0,0.00014296,2]
[330975143,1719979842219,-582.95,0.00014296,2]
[330975144,1719979842229,-500.0,0.00014296,2]
[330975145,1719979842239,-500.0,0.00014296,2]
[330975146,1719979842249,-500.0,0.00014296,2]
[330975147,1719979842258,-500.0,0.00014296,2]
[330975148,1719979842267,-893.19,0.00014296,2]
[330975149,1719979842277,-500.0,0.00014296,2]
[330975150,1719979842288,-401.561576,0.00014296,2]
[330975151,1719979842305,-509.0016836,0.00014296,2]
[330975152,1719979842314,-401.561576,0.00014296,2]
[330975153,1719979842325,-401.561576,0.00014296,2]
[330975154,1719979842336,-401.561576,0.00014296,2]
[330975155,1719979842347,-401.561576,0.00014296,2]
[330975156,1719979842356,-401.56158479,0.00014296,2]
[330975157,1719979842366,-500.0,0.00014296,2]
[330975158,1719979842377,-187.82469444,0.00014296,2]
[330975159,1719979842387,-446.984693,0.00014296,2]
[330975160,1719979842397,-446.984693,0.00014296,2]
[330975161,1719979842408,-446.984693,0.00014296,2]
[330975162,1719979842417,-446.984693,0.00014296,2]
[330975163,1719979842426,-446.984693,0.00014296,2]
[330975164,1719979842436,-446.984686,0.00014296,2]
[330975165,1719979842446,-500.0,0.00014296,2]
[330975166,1719979842455,-151.0,0.00014296,2]
[330975167,1719979842465,-249.661359,0.00014296,2]
[330975168,1719979842474,-151.0,0.00014296,2]
[330975169,1719979842483,-151.0,0.00014296,2]
[330975170,1719979842492,-1393.46,0.00014297,2]
[330975171,1719979842502,-502.13021451,0.00014297,2]
[330975172,1719979842511,-500.0,0.00014297,2]
[330975173,1719979842521,-500.0,0.00014297,2]
[330975174,1719979842531,-918.84,0.00014297,2]
[330975175,1719979842541,-500.0,0.00014297,2]
[330975176,1719979842552,-500.0,0.00014297,2]
[330975178,1719979842561,-500.0,0.00014297,2]
[330975179,1719979842571,-731.84,0.00014297,2]
[330975180,1719979842580,-500.0,0.00014297,2]
[330975181,1719979842589,-500.0,0.00014297,2]
[330975182,1719979842598,-867.52,0.00014297,2]
[330975183,1719979842608,-500.0,0.00014297,2]
[330975185,1719979842617,-500.0,0.00014297,2]
[330975187,1719979842626,-500.0,0.00014297,2]
[330975188,1719979842636,-615.23,0.00014297,2]
[330975189,1719979842645,-500.0,0.00014297,2]
[330975190,1719979842655,-500.0,0.00014297,2]
[330975191,1719979842664,-744.9,0.00014297,2]
[330975193,1719979842673,-500.0,0.00014297,2]
[330975194,1719979842682,-500.0,0.00014297,2]
[330975195,1719979842692,-500.0,0.00014297,2]
[330975196,1719979842701,-500.0,0.00014297,2]
[330975197,1719979842711,-500.0,0.00014297,2]
[330975198,1719979842719,-500.0,0.00014297,2]
[330975199,1719979842729,-12911.35,0.00014298,2]
[330975200,1719979842739,-676.42,0.00014298,2]
[330975201,1719979842748,-500.0,0.00014298,2]
[330975202,1719979842758,-2181.13,0.00014298,2]
[330975203,1719979842767,-1854.54,0.00014298,2]
[330975204,1719979842777,-6040.3,0.00014298,2]
[330975205,1719979842786,-500.0,0.00014298,2]
[330975206,1719979842795,-1216.49,0.00014299,2]
[330975207,1719979842805,-818.22,0.00014299,2]
[330975208,1719979842814,-1010.12,0.00014299,2]
[330975209,1719979842824,-10640.5,0.00014299,2]
[330975210,1719979842833,-3603.57,0.00014299,2]
[330975211,1719979842842,-1393.46,0.000143,2]
[330975212,1719979842851,-155.0,0.0001451,2]
[330975213,1719979842862,-586.61,0.00014568,2]
[330975214,1719979842871,-1825.79,0.00014568,2]
[330975215,1719979842880,-531.0,0.00014568,2]
[330975216,1719979842890,-11184.6,0.00014568,2]
[330975217,1719979842898,-900.83,0.00014569,2]
[330975218,1719979842908,-500.0,0.00014569,2]
[330975219,1719979842918,-1473.93,0.00014569,2]
[330975220,1719979842927,-500.0,0.00014569,2]
[330975221,1719979842936,-812.24,0.00014569,2]
[330975223,1719979842946,-1083.72,0.00014569,2]
[330975225,1719979842955,-606.58,0.00014569,2]
[330975227,1719979842964,-241.59149149,0.00014569,2]
[330975229,1719979842973,-689.01,0.00014569,2]
[330975231,1719979842982,-1081.81,0.00014569,2]
[330975233,1719979842991,-3278.14,0.00014569,2]
[330975235,1719979843000,-2187.32,0.00014569,2]
[330975237,1719979843009,-500.0,0.00014569,2]
[330975239,1719979843018,-500.71,0.00014569,2]
[330975241,1719979843027,-865.95,0.00014569,2]
[330975243,1719979843036,-1271.82,0.00014569,2]
[330975245,1719979843045,-928.09,0.00014569,2]
[330975246,1719979843055,-626.98,0.00014569,2]
[330975248,1719979843064,-500.0,0.00014569,2]
[330975250,1719979843073,-4380.06,0.00014569,2]
[330975252,1719979843083,-500.0,0.00014569,2]
[330975254,1719979843092,-2127.2,0.00014569,2]
[330975256,1719979843101,-500.0,0.00014569,2]
[330975258,1719979843110,-774.84,0.00014569,2]
[330975261,1719979843120,-2103.87,0.00014569,2]
[330975262,1719979843129,-500.0,0.00014569,2]
[330975264,1719979843139,-1123.68,0.00014569,2]
[330975266,1719979843150,-500.0,0.00014569,2]
[330975269,1719979843160,-500.0,0.00014569,2]
[330975271,1719979843169,-500.0,0.00014569,2]
[330975272,1719979843179,-1002.89,0.00014569,2]
[330975274,1719979843188,-572.18399254,0.00014569,2]
[330975276,1719979843197,-826.6,0.00014569,2]
[330975278,1719979843207,-500.0,0.00014569,2]
[330975280,1719979843218,-500.0,0.0001457,2]
[330975283,1719979843230,-8344.0,0.0001457,2]
[330975285,1719979843239,-500.0,0.0001457,2]
[330975286,1719979843248,-1030.83,0.0001457,2]